fUSD/lending_fUSD_20260228
["ID","MTS","AMOUNT","RATE_DAILY","PERIOD"]
[406916128,1772273439464,-152.54639426,0.0001207,2]
[406916129,1772273439473,-500.0,0.0001207,2]
[406916130,1772273439483,-500.0,0.0001207,2]
[406916131,1772273439492,-14854.43811622,0.00012256,2]
[406916132,1772273439501,-164.81,0.00012267,2]
[406916133,1772273439512,-27759.20770143,0.00012271,2]
[406916134,1772273439521,-1252.0,0.00012325,2]
[406916135,1772273439531,-150.0,0.00012512,2]
[406916136,1772273439540,-150.0,0.00012567,2]
[406916137,1772273439549,-3885.43,0.00012572,2]
[406916138,1772273439558,-1600.0,0.00012793,2]
[406916139,1772273439567,-6453.0,0.00012794,2]
[406916140,1772273439576,-456.97377821,0.00013,15]
[406916141,1772273439586,-14854.43811622,0.00013197,2]
[406916142,1772273439595,-27759.20770143,0.00013209,2]
[406916143,1772273439604,-912.0,0.00013562,2]
[406916144,1772273439614,-288.1281186,0.00013671,2]
[406916145,1772273439624,-595.16967246,0.00013698,2]
[406916146,1772273439633,-500.0,0.00013698,2]
[406916147,1772273439643,-624.58042463,0.00013698,2]
[406916148,1772273439652,-500.0,0.00013698,2]
[406916149,1772273439661,-500.0,0.00013698,2]
[406916150,1772273439670,-500.0,0.00013698,2]
[406916151,1772273439679,-500.0,0.00013698,2]
[406916152,1772273439689,-219.67514616,0.00013698,2]
[406916153,1772273439699,-500.0,0.00013698,2]
[406916154,1772273439709,-500.0,0.00013698,2]
[406916155,1772273439718,-500.0,0.00013698,2]
[406916156,1772273439728,-500.0,0.00013698,2]
[406916157,1772273439737,-500.0,0.00013698,2]
[406916158,1772273439746,-500.0,0.00013698,2]
[406916159,1772273439756,-500.0,0.00013698,2]
[406916160,1772273439766,-500.0,0.00013698,2]
[406916161,1772273439775,-500.0,0.00013698,2]
[406916162,1772273439785,-500.0,0.00013698,2]
[406916163,1772273439794,-605.17948879,0.00013698,2]
[406916164,1772273439804,-500.0,0.00013698,2]
[406916165,1772273439813,-500.0,0.00013698,2]
[406916166,1772273439823,-500.0,0.00013698,2]
[406916167,1772273439833,-500.0,0.00013698,2]
[406916168,1772273439843,-500.0,0.00013698,2]
[406916169,1772273439852,-500.0,0.00013698,2]
[406916170,1772273439865,-500.0,0.00013698,2]
[406916171,1772273439874,-500.0,0.00013698,2]
[406916172,1772273439883,-500.0,0.00013698,2]
[406916173,1772273439893,-500.0,0.00013698,2]
[406916174,1772273439903,-500.0,0.00013698,2]
[406916175,1772273439913,-500.0,0.00013698,2]
[406916176,1772273439923,-500.0,0.00013698,2]
[406916177,1772273439932,-500.0,0.00013698,2]
[406916178,1772273439943,-500.0,0.00013698,2]
[406916179,1772273439952,-500.0,0.00013698,2]
[406916180,1772273439961,-500.0,0.00013698,2]
[406916181,1772273439971,-500.0,0.00013698,2]
[406916182,1772273439980,-500.0,0.00013698,2]
[406916183,1772273439989,-500.0,0.00013698,2]
[406916184,1772273439999,-500.0,0.00013698,2]
[406916185,1772273440008,-500.0,0.00013698,2]
[406916186,1772273440017,-500.0,0.00013698,2]
[406916187,1772273440027,-500.0,0.00013698,2]
[406916188,1772273440037,-500.0,0.00013698,2]
[406916189,1772273440047,-500.0,0.00013698,2]
[406916190,1772273440056,-500.0,0.00013698,2]
[406916191,1772273440066,-500.0,0.00013698,2]
[406916192,1772273440076,-500.0,0.00013698,2]
[406916193,1772273440085,-500.0,0.00013698,2]
[406916194,1772273440095,-500.0,0.00013698,2]
[406916195,1772273440104,-393.27599865,0.00013698,2]
[406916196,1772273440114,-765.27,0.00013698,2]
[406916197,1772273440124,-765.27,0.00013698,2]
[406916198,1772273440134,-765.27,0.00013698,2]
[406916199,1772273440143,-765.27,0.00013698,2]
[406916200,1772273440153,-765.27,0.00013698,2]
[406916201,1772273440163,-765.27,0.00013698,2]
[406916202,1772273440172,-765.27,0.00013698,2]
[406916203,1772273440181,-765.27,0.00013698,2]
[406916204,1772273440191,-765.27,0.00013698,2]
[406916205,1772273440200,-765.27,0.00013698,2]
[406916206,1772273440209,-765.27,0.00013698,2]
[406916207,1772273440219,-765.27,0.00013698,2]
[406916208,1772273440228,-765.27,0.00013698,2]
[406916209,1772273440237,-500.0,0.00013698,2]
[406916210,1772273440248,-500.0,0.00013698,2]
[406916211,1772273440258,-500.0,0.00013698,2]
[406916212,1772273440269,-500.0,0.00013698,2]
[406916213,1772273440278,-161.88293327,0.00013698,2]
[406916214,1772273440288,-500.0,0.00013698,2]
[406916215,1772273440297,-500.0,0.00013698,2]
[406916216,1772273440306,-500.0,0.00013698,2]
[406916217,1772273440316,-500.0,0.00013698,2]
[406916218,1772273440326,-500.0,0.00013698,2]
[406916219,1772273440336,-500.0,0.00013698,2]
[406916220,1772273440346,-500.0,0.00013698,2]
[406916221,1772273440356,-329.64340271,0.00013698,2]
[406916222,1772273440365,-500.0,0.00013698,2]
[406916223,1772273440375,-500.0,0.00013698,2]
[406916224,1772273440384,-500.0,0.00013698,2]
[406916225,1772273440394,-500.0,0.00013698,2]
[406916226,1772273440403,-500.0,0.00013698,2]
[406916228,1772273440413,-500.0,0.00013698,2]
[406916229,1772273440422,-500.0,0.00013698,2]
[406916231,1772273440432,-500.0,0.00013698,2]
[406916233,1772273440442,-500.0,0.00013698,2]
[406916234,1772273440451,-500.0,0.00013698,2]
[406916235,1772273440460,-500.0,0.00013698,2]
[406916236,1772273440469,-439.79063626,0.00013698,2]
[406916237,1772273440478,-500.0,0.00013698,2]
[406916238,1772273440487,-500.0,0.00013698,2]
[406916239,1772273440496,-500.0,0.00013698,2]
[406916240,1772273440506,-512.80115338,0.00013698,2]
[406916241,1772273440516,-500.0,0.00013698,2]
[406916242,1772273440525,-500.0,0.00013698,2]
[406916243,1772273440535,-500.0,0.00013698,2]
[406916244,1772273440545,-500.0,0.00013698,2]
[406916245,1772273440554,-270.1160722,0.00013698,2]
[406916246,1772273440564,-601.46010123,0.00013698,2]
[406916247,1772273440573,-500.0,0.00013698,2]
[406916248,1772273440582,-500.0,0.00013698,2]
[406916249,1772273440591,-500.0,0.00013698,2]
[406916250,1772273440600,-500.0,0.00013698,2]
[406916251,1772273440609,-500.0,0.00013698,2]
[406916252,1772273440618,-500.0,0.00013698,2]
[406916253,1772273440628,-500.0,0.00013698,2]
[406916254,1772273440637,-500.0,0.00013698,2]
[406916255,1772273440646,-500.0,0.00013698,2]
[406916256,1772273440655,-500.0,0.00013698,2]
[406916257,1772273440665,-500.0,0.00013698,2]
[406916258,1772273440675,-500.0,0.00013698,2]
[406916259,1772273440684,-500.0,0.00013698,2]
[406916260,1772273440694,-500.0,0.00013698,2]
[406916261,1772273440703,-500.0,0.00013698,2]
[406916262,1772273440713,-500.0,0.00013698,2]
[406916263,1772273440723,-500.0,0.00013698,2]
[406916264,1772273440733,-500.0,0.00013698,2]
[406916265,1772273440743,-500.0,0.00013698,2]
[406916266,1772273440753,-500.0,0.00013698,2]
[406916267,1772273440763,-500.0,0.00013698,2]
[406916268,1772273440773,-500.0,0.00013698,2]
[406916269,1772273440783,-500.0,0.00013698,2]
[406916270,1772273440791,-500.0,0.00013698,2]
[406916271,1772273440801,-500.0,0.00013698,2]
[406916272,1772273440811,-500.0,0.00013698,2]
[406916273,1772273440820,-500.0,0.00013698,2]
[406916274,1772273440830,-500.0,0.00013698,2]
[406916275,1772273440839,-500.0,0.00013698,2]
[406916276,1772273440849,-500.0,0.00013698,2]
[406916277,1772273440860,-290.04213309,0.00013698,2]
[406916278,1772273440871,-500.0,0.00013698,2]
[406916279,1772273440880,-500.0,0.00013698,2]
[406916280,1772273440890,-500.0,0.00013698,2]
[406916281,1772273440901,-500.0,0.00013698,2]
[406916282,1772273440911,-500.0,0.00013698,2]
[406916283,1772273440920,-500.0,0.00013698,2]
[406916284,1772273440930,-500.0,0.00013698,2]
[406916285,1772273440939,-500.0,0.00013698,2]
[406916286,1772273440950,-500.0,0.00013698,2]
[406916287,1772273440960,-500.0,0.00013698,2]
[406916288,1772273440970,-500.0,0.00013698,2]
[406916289,1772273440980,-500.0,0.00013698,2]
[406916290,1772273440991,-500.0,0.00013698,2]
[406916291,1772273441000,-500.0,0.00013698,2]
[406916292,1772273441010,-500.0,0.00013698,2]
[406916293,1772273441020,-500.0,0.00013698,2]
[406916294,1772273441030,-500.0,0.00013698,2]
[406916295,1772273441040,-440.49444221,0.00013698,2]
[406916296,1772273441049,-500.0,0.00013698,2]
[406916297,1772273441059,-500.0,0.00013698,2]
[406916298,1772273441068,-500.0,0.00013698,2]
[406916299,1772273441077,-500.0,0.00013698,2]
[406916300,1772273441087,-500.0,0.00013698,2]
[406916301,1772273441096,-500.0,0.00013698,2]
[406916302,1772273441106,-500.0,0.00013698,2]
[406916303,1772273441116,-500.0,0.00013698,2]
[406916304,1772273441125,-500.0,0.00013698,2]
[406916305,1772273441135,-500.0,0.00013698,2]
[406916306,1772273441145,-500.0,0.00013698,2]
[406916307,1772273441154,-500.0,0.00013698,2]
[406916308,1772273441164,-500.0,0.00013698,2]
[406916309,1772273441174,-500.0,0.00013698,2]
[406916310,1772273441184,-500.0,0.00013698,2]
[406916311,1772273441194,-500.0,0.00013698,2]
[406916312,1772273441204,-508.5684283,0.00013698,2]
[406916313,1772273441213,-500.0,0.00013698,2]
[406916314,1772273441223,-500.0,0.00013698,2]
[406916315,1772273441232,-500.0,0.00013698,2]
[406916316,1772273441242,-500.0,0.00013698,2]
[406916317,1772273441251,-500.0,0.00013698,2]
[406916318,1772273441262,-500.0,0.00013698,2]
[406916319,1772273441271,-500.0,0.00013698,2]
[406916320,1772273441280,-500.0,0.00013698,2]
[406916321,1772273441290,-500.0,0.00013698,2]
[406916322,1772273441300,-500.0,0.00013698,2]
[406916323,1772273441309,-500.0,0.00013698,2]
[406916324,1772273441319,-500.0,0.00013698,2]
[406916325,1772273441328,-500.0,0.00013698,2]
[406916326,1772273441338,-500.0,0.00013698,2]
[406916327,1772273441347,-500.0,0.00013698,2]
[406916329,1772273441356,-500.0,0.00013698,2]
[406916330,1772273441366,-767.34,0.00013698,2]
[406916331,1772273441376,-767.34,0.00013698,2]
[406916332,1772273441385,-767.34,0.00013698,2]
[406916333,1772273441394,-767.34,0.00013698,2]
[406916334,1772273441404,-767.34,0.00013698,2]
[406916335,1772273441413,-767.34,0.00013698,2]
[406916336,1772273441422,-767.34,0.00013698,2]
[406916337,1772273441431,-767.34,0.00013698,2]
[406916338,1772273441440,-767.34,0.00013698,2]
[406916339,1772273441449,-767.34,0.00013698,2]
[406916340,1772273441459,-767.34,0.00013698,2]
[406916342,1772273441468,-767.34,0.00013698,2]
[406916344,1772273441477,-767.34,0.00013698,2]
[406916345,1772273441486,-767.34,0.00013698,2]
[406916346,1772273441495,-767.34,0.00013698,2]
[406916347,1772273441504,-767.34,0.00013698,2]
[406916348,1772273441515,-500.0,0.00013698,2]
[406916349,1772273441524,-500.0,0.00013698,2]
[406916350,1772273441534,-500.0,0.00013698,2]
[406916351,1772273441544,-500.0,0.00013698,2]
[406916352,1772273441553,-500.0,0.00013698,2]
[406916353,1772273441563,-500.0,0.00013698,2]
[406916354,1772273441572,-500.0,0.00013698,2]
[406916355,1772273441582,-500.0,0.00013698,2]
[406916356,1772273441591,-500.0,0.00013698,2]
[406916357,1772273441600,-500.0,0.00013698,2]
[406916358,1772273441610,-500.0,0.00013698,2]
[406916359,1772273441622,-500.0,0.00013698,2]
[406916360,1772273441631,-500.0,0.00013698,2]
[406916361,1772273441641,-500.0,0.00013698,2]
[406916362,1772273441653,-500.0,0.00013698,2]
[406916363,1772273441663,-500.0,0.00013698,2]
[406916364,1772273441673,-500.0,0.00013698,2]
[406916365,1772273441683,-500.0,0.00013698,2]
[406916366,1772273441692,-500.0,0.00013698,2]
[406916367,1772273441701,-500.0,0.00013698,2]
[406916368,1772273441711,-500.0,0.00013698,2]
[406916369,1772273441721,-500.0,0.00013698,2]
[406916370,1772273441730,-500.0,0.00013698,2]
[406916371,1772273441739,-500.0,0.00013698,2]
[406916372,1772273441748,-500.0,0.00013698,2]
[406916373,1772273441758,-500.0,0.00013698,2]
[406916374,1772273441767,-500.0,0.00013698,2]
[406916375,1772273441777,-7751.39,0.00013699,2]
[406916376,1772273441786,-843.23,0.00013699,2]
[406916377,1772273441796,-571.55657605,0.00013722,2]
[406916378,1772273441806,-3300.0,0.000139,5]
[406916379,1772273441815,-621.2419277,0.00013908,2]
[406916380,1772273441824,-500.0,0.00013908,2]
[406916381,1772273441834,-500.0,0.00013908,2]
[406916382,1772273441844,-500.0,0.00013908,2]
[406916383,1772273441853,-500.0,0.00013908,2]
[406916384,1772273441868,-500.0,0.00013908,2]
[406916385,1772273441877,-500.0,0.00013908,2]
[406916386,1772273441886,-500.0,0.00013908,2]
[406916387,1772273441896,-160.97258953,0.00013908,2]
[406916388,1772273441906,-164.07470798,0.00013908,2]
[406916389,1772273441916,-161.20397096,0.00013908,2]
[406916390,1772273441926,-500.0,0.00013908,2]
[406916391,1772273441936,-500.0,0.00013908,2]
[406916392,1772273441947,-500.0,0.00013908,2]
[406916393,1772273441956,-500.0,0.00013908,2]
[406916394,1772273441965,-500.0,0.00013908,2]
[406916395,1772273441974,-500.0,0.00013908,2]
[406916396,1772273441984,-500.0,0.00013908,2]
[406916397,1772273441993,-500.0,0.00013908,2]
[406916398,1772273442002,-500.0,0.00013908,2]
[406916399,1772273442013,-500.0,0.00013908,2]
[406916400,1772273442022,-500.0,0.00013908,2]
[406916401,1772273442031,-500.0,0.00013908,2]
[406916402,1772273442040,-500.0,0.00013908,2]
[406916403,1772273442049,-308.79336882,0.00013908,2]
[406916404,1772273442058,-335.80836064,0.00013908,2]
[406916405,1772273442068,-500.0,0.00013908,2]
[406916406,1772273442077,-500.0,0.00013908,2]
[406916407,1772273442085,-500.0,0.00013908,2]
[406916408,1772273442095,-500.0,0.00013908,2]
[406916409,1772273442105,-500.0,0.00013908,2]
[406916410,1772273442115,-209.76903842,0.00013908,2]
[406916411,1772273442126,-337.91550103,0.00013908,2]
[406916412,1772273442135,-500.0,0.00013908,2]
[406916413,1772273442145,-500.0,0.00013908,2]
[406916414,1772273442154,-160.28869668,0.00013908,2]
[406916415,1772273442164,-500.0,0.00013908,2]
[406916416,1772273442172,-500.0,0.00013908,2]
[406916417,1772273442181,-500.0,0.00013908,2]
[406916418,1772273442190,-164.35592024,0.00013908,2]
[406916419,1772273442199,-500.0,0.00013908,2]
[406916420,1772273442208,-279.65230115,0.00013908,2]
[406916421,1772273442217,-500.0,0.00013908,2]
[406916422,1772273442226,-500.0,0.00013908,2]
[406916423,1772273442236,-500.0,0.00013908,2]
[406916424,1772273442245,-500.0,0.00013908,2]
[406916425,1772273442254,-500.0,0.00013908,2]
[406916426,1772273442263,-500.0,0.00013908,2]
[406916427,1772273442273,-500.0,0.00013908,2]
[406916428,1772273442282,-500.0,0.00013908,2]
[406916429,1772273442291,-163.84904206,0.00013908,2]
[406916430,1772273442300,-524.57437487,0.00013908,2]
[406916431,1772273442309,-500.0,0.00013908,2]
[406916432,1772273442319,-500.0,0.00013908,2]
[406916433,1772273442327,-162.16281507,0.00013908,2]
[406916434,1772273442337,-500.0,0.00013908,2]
[406916435,1772273442346,-500.0,0.00013908,2]
[406916436,1772273442355,-500.0,0.00013908,2]
[406916437,1772273442364,-500.0,0.00013908,2]
[406916438,1772273442374,-500.0,0.00013908,2]
[406916439,1772273442383,-500.0,0.00013908,2]
[406916440,1772273442392,-500.0,0.00013908,2]
[406916441,1772273442401,-310.96112452,0.00013908,2]
[406916442,1772273442410,-500.0,0.00013908,2]
[406916443,1772273442421,-500.0,0.00013908,2]
[406916444,1772273442430,-500.0,0.00013908,2]
[406916445,1772273442439,-500.0,0.00013908,2]
[406916446,1772273442448,-1600.0,0.00013956,2]
[406916447,1772273442457,-4511.23015153,0.00013962,2]
[406916448,1772273442467,-386.0,0.00014074,2]
[406916449,1772273442476,-843.93369988,0.00014099,2]
[406916450,1772273442486,-511.0,0.0001411,2]
[406916451,1772273442496,-14854.43811622,0.00014137,2]
[406916452,1772273442505,-27759.20770143,0.00014147,2]
[406916453,1772273442515,-6138.27320907,0.00014179,3]
[406916454,1772273442524,-150.0,0.00014225,2]
[406916455,1772273442534,-7751.39,0.00014384,2]
[406916456,1772273442543,-883.51710443,0.00014446,2]
[406916457,1772273442553,-500.0,0.00014455,2]
[406916458,1772273442562,-483.13999169,0.00014455,2]
[406916459,1772273442571,-420.02604084,0.00014455,2]
[406916460,1772273442580,-500.0,0.00014455,2]
[406916461,1772273442704,-767.34,0.00014455,2]
[406916462,1772273442714,-500.0,0.00014455,2]
[406916463,1772273442724,-1001.25349418,0.00014456,2]
[406916464,1772273442734,-1000.0,0.00014456,2]
[406916465,1772273442743,-1000.0,0.00014456,2]
[406916466,1772273442752,-1000.0,0.00014456,2]
[406916467,1772273442763,-1000.0,0.00014456,2]
[406916468,1772273442772,-1000.0,0.00014456,2]
[406916469,1772273442781,-1000.0,0.00014456,2]
[406916470,1772273442791,-1000.0,0.00014456,2]
[406916471,1772273442800,-1000.0,0.00014456,2]
[406916472,1772273442810,-1004.03248552,0.00014456,2]
[406916473,1772273442819,-993.55181504,0.00014456,2]
[406916474,1772273442831,-468.68636614,0.00014456,2]
[406916475,1772273442840,-1000.0,0.00014456,2]
[406916476,1772273442850,-1000.0,0.00014456,2]
[406916477,1772273442861,-1000.0,0.00014456,2]
[406916478,1772273442871,-1000.0,0.00014456,2]
[406916479,1772273442883,-1000.0,0.00014456,2]
[406916480,1772273442892,-1010.19433144,0.00014456,2]
[406916481,1772273442901,-1000.0,0.00014456,2]
[406916482,1772273442910,-801.08254131,0.00014456,2]
[406916483,1772273442919,-176.28801878,0.00014456,2]
[406916484,1772273442928,-1000.0,0.00014456,2]
[406916485,1772273442937,-1000.0,0.00014456,2]
[406916486,1772273442947,-1000.0,0.00014456,2]
[406916487,1772273442957,-604.79723351,0.00014456,2]
[406916488,1772273442967,-1000.0,0.00014456,2]
[406916489,1772273442976,-1000.0,0.00014456,2]
[406916490,1772273442985,-1000.0,0.00014456,2]
[406916491,1772273442994,-1000.0,0.00014456,2]
[406916492,1772273443003,-1009.56822593,0.00014456,2]
[406916493,1772273443014,-1000.0,0.00014456,2]
[406916494,1772273443023,-1000.0,0.00014456,2]
[406916495,1772273443032,-1000.0,0.00014456,2]
[406916496,1772273443041,-185.91789535,0.00014456,2]
[406916497,1772273443050,-1000.0,0.00014456,2]
[406916498,1772273443060,-1000.0,0.00014456,2]
[406916499,1772273443069,-882.9763382,0.00014456,2]
[406916500,1772273443078,-1000.0,0.00014456,2]
[406916501,1772273443087,-503.10076377,0.00014456,2]
[406916502,1772273443096,-380.87372073,0.00014456,2]
[406916503,1772273443105,-1000.0,0.00014456,2]
[406916504,1772273443115,-352.15203675,0.00014456,2]
[406916505,1772273443124,-1000.0,0.00014456,2]
[406916506,1772273443133,-1000.0,0.00014456,2]
[406916507,1772273443142,-1000.0,0.00014456,2]
[406916508,1772273443152,-1000.0,0.00014456,2]
[406916509,1772273443161,-501.70249257,0.00014456,2]
[406916510,1772273443170,-1000.0,0.00014456,2]
[406916511,1772273443179,-1000.0,0.00014456,2]
[406916515,1772273443188,-1000.0,0.00014456,2]
[406916517,1772273443197,-1000.0,0.00014456,2]
[406916519,1772273443206,-1000.0,0.00014456,2]
[406916521,1772273443215,-184.13,0.00014516,2]
[406916524,1772273443224,-151.0,0.00014634,2]
[406916526,1772273443234,-2097.91,0.00014853,2]
[406916528,1772273443243,-169.4304621,0.000149,2]
[406916530,1772273443252,-169.43046208,0.000149,2]
[406916532,1772273443264,-250.0,0.00015,2]
[406916535,1772273443274,-151.0,0.00015001,2]
[406916538,1772273443283,-500.0,0.00015003,2]
[406916541,1772273443293,-765.27,0.00015003,2]
[406916544,1772273443302,-1500.0,0.00015004,2]
[406916546,1772273443312,-1500.0,0.00015004,2]
[406916548,1772273443321,-289.52830744,0.00015004,2]
[406916549,1772273443331,-1500.0,0.00015004,2]
[406916550,1772273443340,-1500.0,0.00015004,2]
[406916551,1772273443349,-503.90241085,0.00015004,2]
[406916552,1772273443359,-1500.0,0.00015004,2]
[406916553,1772273443369,-1500.0,0.00015004,2]
[406916554,1772273443379,-1500.0,0.00015004,2]
[406916555,1772273443388,-1500.0,0.00015004,2]
[406916556,1772273443398,-1500.0,0.00015004,2]
[406916557,1772273443407,-1500.0,0.00015004,2]
[406916558,1772273443417,-1217.87177273,0.00015004,2]
[406916559,1772273443427,-276.97407445,0.00015004,2]
[406916560,1772273443436,-1510.16686171,0.00015004,2]
[406916561,1772273443445,-1500.0,0.00015004,2]
[406916562,1772273443455,-1500.0,0.00015004,2]
[406916563,1772273443466,-1500.0,0.00015004,2]
[406916564,1772273443476,-1011.98217898,0.00015004,2]
[406916565,1772273443487,-1093.78241863,0.00015004,2]
[406916566,1772273443496,-1508.05702942,0.00015004,2]
[406916567,1772273443505,-1500.0,0.00015004,2]
[406916568,1772273443515,-1500.0,0.00015004,2]
[406916569,1772273443524,-1014.6582369,0.00015004,2]
[406916570,1772273443533,-1500.0,0.00015004,2]
[406916571,1772273443543,-1500.0,0.00015004,2]
[406916572,1772273443551,-1500.0,0.00015004,2]
[406916573,1772273443561,-1500.0,0.00015004,2]
[406916574,1772273443570,-1500.0,0.00015004,2]
[406916575,1772273443579,-504.49415487,0.00015004,2]
[406916576,1772273443589,-506.55258231,0.00015004,2]
[406916577,1772273443598,-1500.0,0.00015004,2]
[406916578,1772273443607,-1500.0,0.00015004,2]
[406916579,1772273443616,-1508.78545051,0.00015004,2]
[406916580,1772273443626,-1500.0,0.00015004,2]
[406916581,1772273443635,-1500.0,0.00015004,2]
[406916582,1772273443644,-1500.0,0.00015004,2]
[406916583,1772273443654,-2271.60771,0.00015058,7]
[406916584,1772273443663,-230.143724,0.0001506,7]
[406916585,1772273443673,-7751.39,0.00015068,2]
[406916586,1772273443683,-50000.0,0.0001507,2]
[406916587,1772273443692,-14854.43811622,0.00015078,2]
[406916588,1772273443701,-27759.20770143,0.00015085,2]
[406916589,1772273443711,-1932.25528949,0.00015552,2]
[406916590,1772273443722,-2000.0,0.00015552,2]
[406916591,1772273443734,-1747.77184833,0.00015552,2]
[406916592,1772273443743,-529.02288049,0.00015552,2]
[406916593,1772273443752,-2000.0,0.00015552,2]
[406916594,1772273443762,-2000.0,0.00015552,2]
[406916595,1772273443772,-2000.0,0.00015552,2]
[406916596,1772273443781,-1718.82282533,0.00015552,2]
[406916597,1772273443791,-1513.9298778,0.00015552,2]
[406916598,1772273443800,-1150.13473928,0.00015552,2]
[406916599,1772273443809,-2000.0,0.00015552,2]
[406916600,1772273443819,-2000.0,0.00015552,2]
[406916601,1772273443828,-1706.92723051,0.00015552,2]
[406916602,1772273443838,-2000.0,0.00015552,2]
[406916603,1772273443847,-2000.0,0.00015552,2]
[406916604,1772273443857,-2000.0,0.00015552,2]
[406916605,1772273443871,-2041.26009197,0.00015552,2]
[406916606,1772273443880,-2000.0,0.00015552,2]
[406916608,1772273443890,-1146.84360097,0.00015552,2]
[406916610,1772273443899,-2000.0,0.00015552,2]
[406916611,1772273443910,-2000.0,0.00015552,2]
[406916612,1772273443919,-2000.0,0.00015552,2]
[406916613,1772273443929,-2000.0,0.00015552,2]
[406916614,1772273443939,-2000.0,0.00015552,2]
[406916615,1772273443950,-743.29162459,0.00015552,2]
[406916616,1772273443959,-150.0,0.00015728,2]
[406916617,1772273443970,-7751.39,0.00015753,2]
[406916618,1772273443979,-14854.43811622,0.00016019,2]
[406916619,1772273443989,-27759.20770143,0.00016024,2]
[406916620,1772273444000,-1015.31004766,0.00016099,2]
[406916621,1772273444011,-2500.0,0.00016099,2]
[406916622,1772273444021,-500.0,0.00016099,2]
[406916623,1772273444031,-2500.0,0.00016099,2]
[406916624,1772273444041,-2500.0,0.00016099,2]
[406916625,1772273444051,-2500.0,0.00016099,2]
[406916626,1772273444060,-2212.37829793,0.00016099,2]
[406916627,1772273444070,-1019.35272173,0.00016099,2]
[406916628,1772273444079,-2500.0,0.00016099,2]
[406916629,1772273444089,-2500.0,0.00016099,2]
[406916630,1772273444098,-1009.53925467,0.00016099,2]
[406916631,1772273444107,-2500.0,0.00016099,2]
[406916632,1772273444116,-703.36470484,0.00016099,2]
[406916633,1772273444125,-2526.23779749,0.00016099,2]
[406916634,1772273444135,-1118.86499239,0.00016099,2]
[406916635,1772273444144,-9999.99,0.00016116,2]
[406916636,1772273444153,-160.0,0.0001613,2]
[406916637,1772273444162,-174.04581251,0.0001613,2]
[406916638,1772273444172,-5000.00759049,0.000162,5]
[406916639,1772273444181,-631.0,0.00016438,2]
[406916640,1772273444190,-7751.39,0.00016438,2]
[406916641,1772273444199,-266.81662109,0.00016438,2]
[406916642,1772273444208,-631.0,0.00016493,2]
[406916643,1772273444218,-184.13,0.00016521,2]
[406916644,1772273444227,-631.0,0.00016548,2]
[406916645,1772273444236,-631.0,0.00016602,2]
[406916646,1772273444245,-3000.0,0.00016647,2]
[406916647,1772273444254,-501.57340438,0.00016647,2]
[406916648,1772273444265,-1032.89246011,0.00016647,2]
[406916649,1772273444274,-2990.28139264,0.00016647,2]
[406916650,1772273444284,-1050.78546123,0.00016647,2]
[406916651,1772273444294,-1279.13777388,0.00016647,2]
[406916652,1772273444304,-3000.0,0.00016647,2]
[406916653,1772273444314,-631.0,0.00016657,2]
[406916654,1772273444323,-631.0,0.00016712,2]
[406916655,1772273444333,-631.0,0.00016767,2]
[406916656,1772273444342,-182.0,0.00016785,2]
[406916657,1772273444351,-2000.0,0.0001681,2]